bitfinex/quotes_SOLUSD_20250902
["timestamp","ask_amount","ask_price","bid_price","bid_amount"]
[1756826842007,0.06,203.11,203.1,5.77584448]
[1756826842179,0.06,203.11,203.1,57.68064139]
[1756826842504,0.06,203.11,203.1,45.37143849]
[1756826842680,0.06,203.11,203.1,57.68064139]
[1756826842887,0.06,203.11,203.1,56.18064139]
[1756826843504,0.06,203.11,203.1,43.87143849]
[1756826844783,0.06,203.11,203.1,44.01360006]
[1756826844985,0.72,203.11,203.1,13.59559401]
[1756826845185,0.06,203.11,203.1,19.22927692]
[1756826845484,0.06,203.11,203.1,57.68064139]
[1756826845683,0.06,203.11,203.1,111.78064139]
[1756826845885,0.06,203.11,203.1,31.68064139]
[1756826847202,0.06,203.11,203.1,112.06496453]
[1756826847405,0.06,203.14,203.13,39.59559401]
[1756826847596,0.06,203.14,203.13,92.59128162]
[1756826847803,0.06,203.14,203.13,173.40128162]
[1756826848510,0.06,203.14,203.13,178.32423736]
[1756826849115,0.06,203.14,203.13,138.06423736]
[1756826849621,0.06,203.14,203.13,178.32423736]
[1756826850827,0.06,203.14,203.13,180.29638084]
[1756826851194,0.06,203.14,203.13,127.72717794]
[1756826851398,0.06,203.14,203.13,138.06423736]
[1756826852306,0.06,203.16,203.14,0.14216157]
[1756826852504,0.2,203.22,203.21,0.28432314]
[1756826852705,0.2,203.22,203.21,27.04128162]
[1756826853109,0.2,203.22,203.21,26.33128162]
[1756826854497,0.2,203.22,203.21,14.02207872]
[1756826855018,0.2,203.22,203.21,31.25229928]
[1756826855319,0.2,203.22,203.21,18.94309638]
[1756826855521,0.2,203.22,203.21,31.25229928]
[1756826856095,0.2,203.22,203.21,31.96229928]
[1756826856730,0.2,203.22,203.21,72.20229928]
[1756826857601,0.2,203.22,203.21,59.89309638]
[1756826857803,0.2,203.22,203.21,72.20229928]
[1756826858525,0.2,203.22,203.21,99.75309638]
[1756826858726,0.2,203.22,203.21,152.30229928]
[1756826858931,0.2,203.22,203.21,72.20229928]
[1756826859820,0.2,203.22,203.21,31.96229928]
[1756826860127,0.86,203.22,203.21,13.59559401]
[1756826860422,0.2,203.22,203.21,30.82581457]
[1756826860720,0.86,203.22,203.21,56.96797614]
[1756826860922,0.86,203.22,203.21,57.25229928]
[1756826861121,0.2,203.22,203.21,57.25229928]
[1756826861604,0.2,203.22,203.21,44.94309638]
[1756826861801,0.89,203.22,203.21,44.94309638]
[1756826862116,0.2,203.22,203.21,44.94309638]
[1756826862522,0.2,203.22,203.21,57.25229928]
[1756826863030,0.2,203.22,203.21,57.92229928]
[1756826863202,0.2,203.22,203.21,31.92229928]
[1756826863731,0.2,203.22,203.21,71.47229928]
[1756826864099,0.2,203.22,203.21,31.25229928]
[1756826864300,0.2,203.22,203.21,66.55128162]
[1756826864637,0.2,203.22,203.21,18.94309638]
[1756826864936,0.2,203.22,203.21,44.94309638]
[1756826865103,0.2,203.22,203.21,57.25229928]
[1756826865436,0.2,203.22,203.21,50.03447161]
[1756826865803,0.2,203.22,203.21,130.13447161]
[1756826866216,0.2,203.22,203.21,130.80447161]
[1756826866721,0.2,203.22,203.21,125.71309638]
[1756826866904,0.2,203.22,203.21,130.13447161]
[1756826867105,0.2,203.22,203.21,104.80447161]
[1756826867527,0.2,203.22,203.21,24.70447161]
[1756826867944,0.75,203.28,203.25,26.0]
[1756826867945,0.06,203.28,203.25,26.0]
[1756826868114,0.06,203.28,203.27,19.11345395]
[1756826868320,0.06,203.45,203.3,13.59559401]
[1756826868321,1.97136591,203.37,203.3,13.59559401]
[1756826868635,0.69,203.43,203.42,13.59559401]
[1756826868842,0.75,203.45,203.44,26.42648471]
[1756826869129,0.06,203.45,203.44,45.11345395]
[1756826869506,0.06,203.45,203.44,52.28545673]
[1756826870008,0.06,203.45,203.44,54.25488141]
[1756826870234,0.06,203.45,203.44,95.12488141]
[1756826870419,0.06,203.45,203.44,100.04033559]
[1756826872135,0.06,203.47,203.44,100.04033559]
[1756826872314,0.06,203.47,203.45,14.69207872]
[1756826872519,0.06,203.47,203.45,31.87066931]
[1756826872728,0.06,203.47,203.45,71.40066931]
[1756826873815,0.75,203.46,203.45,71.38066931]
[1756826874046,0.75,203.46,203.45,40.02207872]
[1756826874245,0.06,203.47,203.45,40.02207872]
[1756826874566,0.06,203.47,203.45,57.2005657]
[1756826875051,0.06,203.47,203.46,26.28545673]
[1756826875225,0.06,203.48,203.47,0.42648471]
[1756826875623,0.06,203.48,203.45,13.59559401]
[1756826875817,12.32337801,203.48,203.47,13.59559401]
[1756826876339,13.01337801,203.48,203.47,13.59559401]
[1756826876641,0.75,203.48,203.47,13.59559401]
[1756826877529,0.75,203.48,203.45,13.59559401]
[1756826877736,0.69,203.47,203.45,13.59559401]
[1756826877936,12.95337801,203.46,203.42,4.87557649]
[1756826878128,0.69,203.45,203.42,13.87991715]
[1756826878334,0.69,203.44,203.43,0.14216157]
[1756826878866,0.69,203.44,203.41,13.59559401]
[1756826879147,0.69,203.43,203.41,13.59559401]
[1756826879331,0.69,203.45,203.41,13.59559401]
[1756826879521,0.69,203.44,203.41,13.59559401]
[1756826879726,0.69,203.43,203.41,18.55458501]
[1756826880046,0.69,203.42,203.41,18.55458501]
[1756826880744,0.06,203.48,203.42,0.28432314]
[1756826880920,0.06,203.48,203.46,12.26337801]
[1756826881119,0.06,203.48,203.47,13.59559401]
[1756826881539,0.75,203.48,203.47,13.59559401]
[1756826882060,0.06,203.48,203.47,14.02207872]
[1756826882226,0.06,203.48,203.47,26.28545673]
[1756826882648,0.06,203.48,203.47,31.20018617]
[1756826882829,0.06,203.48,203.47,26.28545673]
[1756826883144,0.75,203.48,203.43,12.26337801]
[1756826883348,0.06,203.48,203.46,0.42648471]
[1756826883649,0.06,203.48,203.47,22.81763721]
[1756826884749,0.06,203.48,203.47,27.73236665]
[1756826885341,0.06,203.48,203.47,14.69207872]
[1756826885547,0.75,203.48,203.47,13.59559401]
[1756826885724,0.06,203.48,203.47,22.53331407]
[1756826885924,0.06,203.51,203.47,22.53331407]
[1756826885925,0.06,203.51,203.5,39.59559401]
[1756826886132,0.06,203.51,203.5,47.7211525]
[1756826886331,0.06,203.51,203.5,48.3911525]
[1756826887246,0.06,203.54,203.53,40.02207872]
[1756826887426,0.06,203.54,203.53,48.14763721]
[1756826887627,0.06,203.54,203.53,48.81763721]
[1756826888235,0.06,203.56,203.54,14.02207872]
[1756826888440,0.69,203.66,203.6,0.42648471]
[1756826888637,0.69,203.66,203.63,13.59559401]
[1756826888948,0.69,203.68,203.62,21.7211525]
[1756826889158,0.69,203.68,203.63,8.12555849]
[1756826889448,0.69,203.67,203.63,8.12555849]
[1756826889758,0.69,203.67,203.59,20.40511589]
[1756826889759,26.0,203.61,203.47,0.67]
[1756826889943,8.12555849,203.52,203.47,0.67]
[1756826890250,8.18555849,203.53,203.47,8.12555849]
[1756826890554,0.06,203.53,203.51,14.02207872]
[1756826890856,0.06,203.53,203.52,53.73115922]
[1756826891147,0.06,203.53,203.52,93.87115922]
[1756826891457,0.06,203.53,203.52,48.81763721]
[1756826891656,0.06,203.53,203.52,80.16207872]
[1756826891832,0.06,203.53,203.52,40.02207872]
[1756826892028,0.06,203.53,203.52,14.02207872]
[1756826892234,0.06,203.53,203.52,22.82763721]
[1756826892649,0.06,203.53,203.52,54.16207872]
[1756826893142,0.06,203.53,203.52,54.84207872]
[1756826893330,0.06,203.53,203.52,59.75560073]
[1756826893532,0.74,203.53,203.52,54.16207872]
[1756826893749,8.86555849,203.53,203.46,9.48555849]
[1756826893939,0.74,203.53,203.48,13.59559401]
[1756826894155,8.80555849,203.52,203.49,0.14216157]
[1756826894352,8.18555849,203.53,203.49,0.14216157]
[1756826894660,8.12555849,203.51,203.49,0.14216157]
[1756826894840,8.12555849,203.5,203.48,53.73559401]
[1756826895033,8.12555849,203.51,203.48,53.73559401]
[1756826895632,8.12555849,203.49,203.48,13.59559401]
[1756826895856,0.68,203.49,203.47,13.73775558]
[1756826896058,8.12555849,203.48,203.45,8.12555849]
[1756826896236,8.12555849,203.46,203.45,13.59559401]
[1756826896432,8.12555849,203.47,203.45,13.59559401]
[1756826896650,8.12555849,203.48,203.45,13.59559401]
[1756826896835,0.68,203.47,203.45,13.59559401]
[1756826897041,8.12555849,203.46,203.45,13.59559401]
[1756826897247,8.80555849,203.46,203.45,13.59559401]
[1756826897655,8.12555849,203.46,203.45,13.59559401]
[1756826897868,0.68,203.49,203.45,13.59559401]
[1756826898037,0.68,203.48,203.45,13.59559401]
[1756826898361,0.68,203.47,203.45,13.59559401]
[1756826898553,0.68,203.47,203.41,76.71501781]
[1756826898554,8.80555849,203.46,203.41,31.67885846]
[1756826898760,8.12555849,203.44,203.42,13.59559401]
[1756826898966,0.68,203.5,203.44,0.14216157]
[1756826899148,8.12555849,203.49,203.44,0.14216157]
[1756826899352,0.74,203.53,203.47,0.14216157]
[1756826899542,8.12555849,203.51,203.47,14.02207872]
[1756826899945,8.12555849,203.52,203.48,0.68]
[1756826900140,8.80555849,203.52,203.47,14.02207872]
[1756826900539,0.68,203.51,203.47,14.02207872]
[1756826900738,8.12555849,203.5,203.47,13.59559401]
[1756826900956,8.80555849,203.5,203.47,0.42648471]
[1756826901159,8.12555849,203.49,203.46,13.59559401]
[1756826901478,8.12555849,203.47,203.41,19.76954358]
[1756826901681,8.12555849,203.47,203.39,0.68]
[1756826901682,8.12555849,203.43,203.42,13.59559401]
[1756826901841,8.12555849,203.44,203.41,0.42648471]
[1756826902041,8.12555849,203.44,203.41,1.10648471]
[1756826902249,8.12555849,203.44,203.41,0.96432314]
[1756826902466,8.12555849,203.47,203.44,0.28432314]
[1756826902759,8.12555849,203.46,203.45,13.59559401]
[1756826903279,8.12555849,203.47,203.45,13.59559401]
[1756826903850,0.68,203.52,203.46,9.2320432]
[1756826904170,0.06,203.53,203.49,13.59559401]
[1756826904378,0.06,203.53,203.5,0.42648471]
[1756826904667,0.06,203.53,203.51,13.59559401]
[1756826904863,8.86555849,203.53,203.5,0.28432314]
[1756826905069,0.06,203.53,203.5,0.28432314]
[1756826905275,0.06,203.53,203.51,13.59559401]
[1756826906265,0.06,203.53,203.52,0.96432314]
[1756826906969,0.06,203.53,203.52,18.79343916]
[1756826907272,8.86555849,203.53,203.48,39.87991715]
[1756826907462,8.12555849,203.51,203.48,39.87991715]
[1756826907844,0.06,203.53,203.49,0.14216157]
[1756826908075,8.18555849,203.53,203.5,13.59559401]
[1756826908251,8.18555849,203.53,203.5,14.27559401]
[1756826908565,8.18555849,203.53,203.48,0.28432314]
[1756826908566,8.12555849,203.51,203.48,0.28432314]
[1756826909176,8.12555849,203.52,203.48,5.87876802]
[1756826909353,8.18555849,203.53,203.49,0.14216157]
[1756826909671,0.74,203.53,203.49,0.14216157]
[1756826909843,8.12555849,203.52,203.49,0.14216157]
[1756826910048,0.06,203.53,203.5,0.96432314]
[1756826910251,0.06,203.53,203.5,0.28432314]
[1756826910455,0.06,203.53,203.52,13.59559401]
[1756826911064,0.06,203.53,203.5,13.59559401]
[1756826911065,8.86555849,203.53,203.5,13.59559401]
[1756826911273,0.74,203.53,203.5,13.59559401]
[1756826911471,8.80555849,203.52,203.5,13.59559401]
[1756826911778,8.12555849,203.51,203.5,13.59559401]
[1756826911968,0.68,203.52,203.5,13.59559401]
[1756826912271,8.18555849,203.53,203.5,13.59559401]
[1756826912466,8.18555849,203.53,203.5,14.27559401]
[1756826912667,0.06,203.53,203.52,13.59559401]
[1756826912972,0.06,203.53,203.52,22.82763721]
[1756826913285,0.06,203.56,203.55,39.59559401]
[1756826913463,0.06,203.56,203.55,54.14207872]
[1756826913780,0.06,203.56,203.55,62.94763721]
[1756826913967,0.06,203.56,203.55,22.82763721]
[1756826914282,0.06,203.56,203.55,14.70207872]
[1756826914582,0.06,203.56,203.55,22.82763721]
[1756826915271,0.06,203.56,203.55,27.74043504]
[1756826915488,0.06,203.56,203.55,67.86043504]
[1756826915670,0.06,203.56,203.55,59.73487655]
[1756826915847,0.06,203.56,203.55,67.86043504]
[1756826916054,0.06,203.56,203.55,27.74043504]
[1756826916451,0.06,203.59,203.58,48.14763721]
[1756826916647,0.06,203.59,203.58,80.12207872]
[1756826916861,0.06,203.59,203.58,88.92763721]
[1756826917264,0.06,203.59,203.58,53.73971108]
[1756826917478,0.06,203.59,203.58,48.82763721]
[1756826917775,8.86555849,203.59,203.55,13.59559401]
[1756826918077,0.68,203.58,203.56,0.28432314]
[1756826918281,8.80555849,203.58,203.56,0.28432314]
[1756826918458,8.12555849,203.58,203.55,13.59559401]
[1756826918658,8.12555849,203.57,203.55,13.59559401]
[1756826918860,0.68,203.58,203.55,13.59559401]
[1756826919056,8.12555849,203.56,203.55,13.59559401]
[1756826919380,8.80555849,203.56,203.48,40.78]
[1756826919591,8.12555849,203.51,203.49,13.59559401]
[1756826919956,8.12555849,203.52,203.49,13.59559401]
[1756826920258,0.06,203.59,203.49,21.7211525]
[1756826920459,0.06,203.59,203.56,13.59559401]
[1756826921259,0.06,203.59,203.56,14.31559401]
[1756826921562,0.06,203.59,203.56,18.50796985]
[1756826922475,0.06,203.59,203.58,48.14763721]
[1756826922700,0.06,203.59,203.58,47.7211525]
[1756826922983,0.06,203.59,203.58,48.14763721]
[1756826923152,0.06,203.59,203.58,48.86763721]
[1756826923356,0.06,203.59,203.58,48.14763721]
[1756826923560,0.06,203.59,203.58,45.65415259]
[1756826923757,0.06,203.59,203.58,53.77971108]
[1756826923956,0.06,203.59,203.58,45.65415259]
[1756826924193,0.06,203.59,203.58,53.77971108]
[1756826925896,0.06,203.59,203.58,27.77971108]
[1756826926186,0.06,203.61,203.6,48.14763721]
[1756826926563,0.06,203.61,203.6,80.84207872]
[1756826926871,0.06,203.61,203.6,88.24763721]
[1756826927067,0.06,203.61,203.6,39.59559401]
[1756826927270,0.06,203.61,203.6,40.02207872]
[1756826927479,0.06,203.61,203.6,93.87922856]
[1756826927674,0.06,203.61,203.6,85.75367007]
[1756826927988,0.06,203.61,203.6,85.73367007]
[1756826928287,0.06,203.61,203.6,85.01367007]
[1756826928484,0.06,203.61,203.6,44.93367007]
[1756826928789,8.18555849,203.61,203.6,13.59559401]
[1756826928982,8.85555849,203.61,203.6,13.59559401]
[1756826929190,8.85555849,203.61,203.54,13.59559401]
[1756826929384,8.12555849,203.57,203.55,40.08]
[1756826929587,8.12555849,203.57,203.51,8.12555849]
[1756826929588,8.12555849,203.56,203.5,13.62559401]
[1756826929775,8.12555849,203.55,203.52,13.59559401]
[1756826929972,8.12555849,203.55,203.52,53.67559401]
[1756826930162,0.67,203.58,203.55,13.59559401]
[1756826930360,8.12555849,203.56,203.5,4.94396808]
[1756826930575,8.12555849,203.54,203.51,13.59559401]
[1756826930776,8.12555849,203.52,203.5,0.03]
[1756826930968,8.12555849,203.51,203.5,13.62559401]
[1756826931382,8.12555849,203.51,203.5,14.05207872]
[1756826931581,8.12555849,203.52,203.5,14.05207872]
[1756826931776,8.12555849,203.51,203.5,13.62559401]
[1756826931983,8.12555849,203.51,203.5,0.03]
[1756826932291,8.12555849,203.52,203.5,0.03]
[1756826932582,8.12555849,203.57,203.53,13.59559401]
[1756826932783,8.12555849,203.58,203.55,13.59559401]
[1756826932988,0.67,203.57,203.5,0.03]
[1756826933165,8.12555849,203.51,203.5,0.03]
[1756826933569,13.70932194,203.51,203.5,0.03]
[1756826933775,13.70932194,203.51,203.47,0.03]
[1756826933979,0.67,203.6,203.5,8.12555849]
[1756826934195,8.12555849,203.58,203.54,14.02207872]
[1756826934488,8.12555849,203.58,203.54,13.59559401]
[1756826934664,8.12555849,203.55,203.54,39.59559401]
[1756826935163,0.67,203.57,203.55,13.59559401]
[1756826935367,0.73,203.61,203.56,8.12555849]
[1756826935585,0.67,203.6,203.58,8.12555849]
[1756826935774,0.67,203.59,203.58,8.12555849]
[1756826936171,0.06,203.61,203.58,8.12555849]
[1756826936380,0.67,203.6,203.55,13.59559401]
[1756826936592,0.67,203.59,203.56,8.12555849]
[1756826936788,0.67,203.58,203.55,8.12555849]
[1756826936970,0.67,203.58,203.52,39.59559401]
[1756826937168,0.67,203.58,203.55,8.12555849]
[1756826937376,0.67,203.58,203.47,0.03]
[1756826937377,8.12555849,203.56,203.47,0.03]
[1756826937684,8.12555849,203.48,203.47,0.03]
[1756826938083,8.79555849,203.48,203.47,0.03]
[1756826939291,0.67,203.51,203.47,0.03]
[1756826939595,8.79555849,203.48,203.47,0.03]
[1756826939893,4.9154914,203.56,203.47,0.03]
[1756826939894,8.12555849,203.5,203.47,0.03]
[1756826940195,8.12555849,203.48,203.47,0.03]
[1756826941183,8.12555849,203.49,203.47,0.03]
[1756826941483,0.67,203.51,203.47,0.03]
[1756826941676,8.12555849,203.49,203.47,0.03]
[1756826941872,8.12555849,203.48,203.47,0.03]
[1756826942774,8.12555849,203.49,203.47,0.03]
[1756826942974,40.38,203.55,203.47,0.03]
[1756826942975,8.79555849,203.48,203.47,0.03]
[1756826943578,12.93943181,203.48,203.47,0.03]
[1756826944591,17.85391972,203.48,203.47,0.03]
[1756826944974,58.19391972,203.48,203.47,0.03]
[1756826945994,26.0,203.46,203.45,0.03]
[1756826946201,50.82318676,203.46,203.44,0.03]
[1756826946497,38.26943181,203.45,203.42,0.03]
[1756826946702,12.26943181,203.43,203.42,0.03]
[1756826947085,0.28432314,203.46,203.42,0.03]
[1756826947086,0.67,203.46,203.42,0.03]
[1756826947290,12.26943181,203.43,203.42,0.03]
[1756826947694,12.26943181,203.44,203.42,0.03]
[1756826948201,40.36,203.46,203.42,0.03]
[1756826948384,12.26943181,203.45,203.42,0.03]
[1756826948587,12.26943181,203.44,203.42,0.03]
[1756826949082,12.26943181,203.43,203.42,0.03]
[1756826949284,4.91426427,203.49,203.42,0.03]
[1756826949495,12.26943181,203.45,203.42,0.03]
[1756826949995,12.26943181,203.43,203.42,0.03]
[1756826950388,12.26943181,203.44,203.42,0.03]
[1756826950704,12.26943181,203.43,203.42,0.03]
[1756826951103,40.34,203.44,203.42,0.03]
[1756826951293,12.26943181,203.43,203.42,0.03]
[1756826952117,12.91943181,203.43,203.42,0.03]
[1756826952603,17.83512762,203.43,203.42,0.03]
[1756826953602,5.56569581,203.43,203.42,0.03]
[1756826953801,17.83512762,203.43,203.42,0.03]
[1756826953989,53.21943181,203.43,203.42,0.03]
[1756826954596,58.13512762,203.43,203.42,0.03]
[1756826954984,52.56943181,203.43,203.42,0.03]
[1756826955397,12.91943181,203.43,203.42,0.03]
[1756826955604,53.17943181,203.43,203.42,0.03]
[1756826955818,58.09512762,203.43,203.42,0.03]
[1756826956012,17.83512762,203.43,203.42,0.03]
[1756826956216,58.07512762,203.43,203.42,0.03]
[1756826956404,53.15943181,203.43,203.42,0.03]
[1756826956603,12.26943181,203.43,203.42,0.03]
[1756826956904,17.83512762,203.43,203.42,0.03]
[1756826957318,58.07512762,203.43,203.42,0.03]
[1756826957511,70.34455943,203.43,203.31,13.59559401]
[1756826957711,12.26943181,203.33,203.31,13.59559401]
[1756826958011,12.26943181,203.33,203.31,14.31559401]
[1756826958713,12.26943181,203.32,203.31,0.72]
[1756826959107,12.26943181,203.32,203.29,13.59559401]
[1756826959317,12.26943181,203.31,203.3,26.72]
[1756826959718,12.26943181,203.32,203.3,26.72]
[1756826959912,12.26943181,203.32,203.3,0.72]
[1756826960111,12.26943181,203.33,203.31,0.72]
[1756826960317,12.26943181,203.34,203.32,0.72]
[1756826960624,12.26943181,203.34,203.33,0.72]
[1756826960918,40.22,203.35,203.33,0.72]
[1756826961120,12.26943181,203.36,203.33,0.72]
[1756826961322,12.26943181,203.36,203.35,0.03]
[1756826962223,0.06,203.43,203.35,52.61502582]
[1756826962426,0.06,203.43,203.39,13.59559401]
[1756826962629,40.24,203.43,203.39,13.59559401]
[1756826962926,52.50943181,203.43,203.39,14.31559401]
[1756826963319,52.50943181,203.43,203.4,0.72]
[1756826963522,12.91943181,203.42,203.39,13.59559401]
[1756826963822,12.26943181,203.42,203.39,13.59559401]
[1756826964604,40.24,203.41,203.39,13.59559401]
[1756826965003,40.24,203.41,203.38,4.916718]
[1756826965199,0.06,203.43,203.4,12.26943181]
[1756826965406,0.06,203.43,203.42,12.69591652]
[1756826965714,0.06,203.43,203.42,26.29151053]
[1756826965913,0.06,203.43,203.42,27.01151053]
[1756826966307,1e-08,203.43,203.42,31.92744799]
[1756826967099,1e-08,203.46,203.45,26.0]
[1756826967303,1e-08,203.46,203.45,92.53151053]
[1756826967535,2.02932772,203.62,203.46,14.02207872]
[1756826967834,6.34,203.59,203.55,12.26943181]
[1756826968018,6.34,203.59,203.54,25.86502582]
[1756826968214,40.26,203.6,203.55,17.90209333]
[1756826968617,40.26,203.6,203.56,12.26943181]
[1756826969029,0.06,203.61,203.57,13.59559401]
[1756826969336,0.06,203.61,203.57,14.31559401]
[1756826969527,0.06,203.61,203.57,13.59559401]
[1756826970234,0.06,203.61,203.6,25.86502582]
[1756826970414,0.06,203.61,203.6,13.59559401]
[1756826971234,0.06,203.61,203.6,14.31559401]
[1756826973030,0.06,203.61,203.6,31.49661717]
[1756826973527,0.06,203.61,203.6,19.22718536]
[1756826973841,0.06,203.61,203.6,31.49661717]
[1756826974217,0.06,203.61,203.6,31.92310188]
[1756826975803,0.06,203.61,203.6,35.78681124]
[1756826976033,0.06,203.61,203.6,19.65367007]
[1756826976626,0.06,203.61,203.6,31.92310188]
[1756826977123,0.06,203.61,203.6,19.65367007]
[1756826977311,0.06,203.61,203.6,40.02207872]
[1756826977518,0.06,203.61,203.6,39.59559401]
[1756826977716,0.06,203.61,203.6,13.59559401]
[1756826978037,12.32943181,203.61,203.6,13.59559401]
[1756826978338,0.06,203.61,203.6,13.59559401]
[1756826978533,0.06,203.61,203.6,19.22718536]
[1756826979036,0.06,203.61,203.6,31.49661717]
[1756826979542,0.06,203.61,203.6,14.31559401]
[1756826980129,0.06,203.61,203.6,31.92310188]
[1756826980541,0.06,203.61,203.6,13.59559401]
[1756826980836,0.06,203.61,203.6,98.60718536]
[1756826981136,0.06,203.61,203.6,111.98310188]
[1756826982512,0.06,203.61,203.6,94.12207872]
[1756826982926,0.06,203.61,203.6,99.03367007]
[1756826983429,0.06,203.61,203.6,99.71367007]
[1756826983641,0.06,203.61,203.6,99.28718536]
[1756826984037,0.06,203.61,203.6,111.55661717]
[1756826984632,0.06,203.61,203.6,94.37559401]
[1756826984825,0.06,203.61,203.6,106.64502582]
[1756826985019,0.06,203.61,203.6,31.45661717]
[1756826986336,0.06,203.61,203.6,31.88310188]
[1756826988525,0.06,203.61,203.6,19.61367007]
[1756826988722,0.06,203.61,203.6,13.59559401]
[1756826989245,0.06,203.61,203.6,18.50718536]
[1756826989448,0.06,203.61,203.6,31.45661717]
[1756826989630,0.06,203.61,203.6,30.77661717]
[1756826990143,0.06,203.61,203.6,31.88310188]
[1756826990334,0.06,203.61,203.6,18.93367007]
[1756826991741,0.06,203.61,203.6,14.02207872]
[1756826992344,0.06,203.61,203.6,31.20310188]
[1756826992550,0.06,203.61,203.6,31.88310188]
[1756826995155,0.06,203.61,203.6,31.20310188]
[1756826995645,0.06,203.61,203.6,111.98310188]
[1756826996058,0.06,203.61,203.6,116.96795049]
[1756826999437,0.06,203.61,203.6,144.79851868]
[1756826999764,0.06,203.61,203.6,157.06795049]
[1756827000261,0.06,203.61,203.6,144.79851868]
[1756827000760,0.06,203.61,203.6,157.06795049]
[1756827000961,0.06,203.61,203.6,104.01851868]
[1756827001164,0.06,203.61,203.6,124.68044262]
[1756827001333,0.06,203.61,203.6,44.58044262]
[1756827002209,0.06,203.61,203.6,57.95635914]
[1756827002461,0.06,203.61,203.6,36.86795049]
[1756827003029,1e-08,203.61,203.6,36.86795049]
[1756827003445,1e-08,203.61,203.6,24.59851868]
[1756827003660,0.06,203.64,203.63,39.59559401]
[1756827003839,0.06,203.64,203.63,88.21160472]
[1756827004039,0.06,203.64,203.63,88.89160472]
[1756827004944,0.06,203.64,203.63,48.81160472]
[1756827005153,0.06,203.64,203.63,88.89160472]
[1756827005328,0.06,203.64,203.63,93.80247247]
[1756827005533,0.06,203.66,203.64,14.02207872]
[1756827005756,0.92,203.74,203.71,34.109526]
[1756827005978,0.72,203.73,203.71,26.0]
[1756827006180,0.2,203.74,203.71,39.59559401]
[1756827006181,0.72,203.72,203.71,39.59559401]
[1756827007195,0.72,203.72,203.67,8.109526]
[1756827007358,0.72,203.72,203.68,13.59559401]
[1756827007559,0.72,203.71,203.68,13.59559401]
[1756827007980,0.72,203.71,203.68,18.50522305]
[1756827008157,0.72,203.71,203.68,21.74883265]
[1756827008359,0.92,203.74,203.7,13.59559401]
[1756827008592,0.72,203.73,203.69,13.59559401]
[1756827008781,0.72,203.72,203.69,13.59559401]
[1756827008992,0.72,203.73,203.69,13.59559401]
[1756827009361,3.9636096,203.72,203.67,26.0]
[1756827009682,3.9636096,203.72,203.68,13.59559401]
[1756827009683,0.72,203.71,203.68,13.59559401]
[1756827010064,3.9636096,203.7,203.63,80.1]
[1756827010264,3.2436096,203.64,203.6,4.98484861]
[1756827010585,3.2436096,203.62,203.57,43.9836096]
[1756827010779,3.2436096,203.62,203.61,39.59559401]
[1756827010986,3.9636096,203.62,203.61,39.59559401]
[1756827011574,3.9636096,203.62,203.61,13.59559401]
[1756827011887,8.87482956,203.62,203.51,40.06]
[1756827012081,3.2436096,203.55,203.52,14.02207872]
[1756827012254,0.71,203.59,203.52,14.70207872]
[1756827012457,3.2436096,203.56,203.52,13.59559401]
[1756827012789,3.2436096,203.53,203.5,13.59559401]
[1756827012990,3.2436096,203.51,203.48,4.84116418]
[1756827013286,3.2436096,203.5,203.49,13.59559401]
[1756827013489,3.2436096,203.52,203.49,18.50976183]
[1756827013693,8.83583706,203.52,203.49,18.50976183]
[1756827013869,8.83583706,203.52,203.49,13.59559401]
[1756827014196,8.83583706,203.52,203.49,18.50983469]
[1756827014491,8.12583706,203.55,203.5,0.42648471]
[1756827014881,4.91183274,203.59,203.5,0.42648471]
[1756827015086,4.91183274,203.59,203.49,13.59559401]
[1756827015087,0.71,203.54,203.49,13.59559401]
[1756827015286,0.71,203.53,203.49,39.59559401]
[1756827015584,8.12583706,203.5,203.48,4.84116418]